fUSD/lending_fUSD_20260408
["ID","MTS","AMOUNT","RATE_DAILY","PERIOD"]
[420078968,1775656275665,-1375.939051,0.00015965,2]
[420078969,1775656275678,-163.489759,0.00015965,2]
[420078970,1775656275692,-289.111946,0.00015965,2]
[420078971,1775656275705,-553.257642,0.00015965,2]
[420078972,1775656275718,-151.0,0.00015965,2]
[420078973,1775656275730,-151.0,0.00015965,2]
[420078974,1775656275744,-1635.97415,0.00015965,2]
[420078975,1775656275757,-163.489759,0.00015965,2]
[420078976,1775656275768,-289.111946,0.00015965,2]
[420078977,1775656275781,-151.0,0.00015965,2]
[420078978,1775656275793,-151.0,0.00015965,2]
[420078979,1775656275806,-151.0,0.00015965,2]
[420078980,1775656275818,-1635.97415,0.00015965,2]
[420078981,1775656275830,-163.489759,0.00015965,2]
[420078982,1775656275842,-289.111946,0.00015965,2]
[420078983,1775656275853,-151.0,0.00015965,2]
[420078984,1775656275866,-151.0,0.00015965,2]
[420078985,1775656275878,-255.890544,0.00015965,2]
[420078986,1775656275890,-151.0,0.00015965,2]
[420078987,1775656275901,-151.0,0.00015965,2]
[420078988,1775656275913,-163.489759,0.00015965,2]
[420078989,1775656275925,-174.303145,0.00015965,2]
[420078990,1775656275937,-151.0,0.00015965,2]
[420078991,1775656275949,-289.111946,0.00015965,2]
[420078992,1775656275961,-151.0,0.00015965,2]
[420078993,1775656275973,-151.0,0.00015965,2]
[420078994,1775656275987,-174.303145,0.00015965,2]
[420078995,1775656276000,-151.0,0.00015965,2]
[420078996,1775656276012,-151.0,0.00015965,2]
[420078997,1775656276025,-174.303145,0.00015965,2]
[420078998,1775656276037,-432.068186,0.00015965,2]
[420078999,1775656276049,-213.120018,0.00015965,2]
[420079000,1775656276061,-432.068186,0.00015965,2]
[420079001,1775656276073,-432.068186,0.00015965,2]
[420079002,1775656276086,-151.0,0.00015965,2]
[420079003,1775656276098,-432.068186,0.00015965,2]
[420079004,1775656276110,-151.0,0.00015965,2]
[420079005,1775656276122,-213.120018,0.00015965,2]
[420079006,1775656276133,-260.393638,0.00015965,2]
[420079007,1775656276146,-174.303145,0.00015965,2]
[420079008,1775656276158,-175.184416,0.00015965,2]
[420079009,1775656276169,-213.120018,0.00015965,2]
[420079010,1775656276181,-175.184416,0.00015965,2]
[420079011,1775656276193,-175.184416,0.00015965,2]
[420079012,1775656276205,-162.040424,0.00015965,2]
[420079013,1775656276216,-162.040424,0.00015965,2]
[420079014,1775656276227,-175.184416,0.00015965,2]
[420079015,1775656276239,-162.040424,0.00015965,2]
[420079016,1775656276252,-183.006023,0.00015965,2]
[420079017,1775656276263,-162.040424,0.00015965,2]
[420079018,1775656276275,-183.006023,0.00015965,2]
[420079019,1775656276287,-183.006023,0.00015965,2]
[420079020,1775656276299,-281.058131,0.00015965,2]
[420079021,1775656277479,-941.144596,0.00015965,2]
[420079022,1775656277513,-183.006023,0.00015965,2]
[420079023,1775656277538,-281.058131,0.00015965,2]
[420079024,1775656277559,-941.144596,0.00015965,2]
[420079025,1775656277583,-281.058131,0.00015965,2]
[420079026,1775656277593,-941.144596,0.00015965,2]
[420079027,1775656277603,-281.058131,0.00015965,2]
[420079028,1775656277613,-941.144596,0.00015965,2]
[420079029,1775656277623,-285.69162,0.00015965,2]
[420079030,1775656277633,-285.69162,0.00015965,2]
[420079031,1775656277643,-151.0,0.00015965,2]
[420079032,1775656277653,-1002.84151,0.00015965,2]
[420079033,1775656277663,-151.0,0.00015965,2]
[420079034,1775656277672,-285.69162,0.00015965,2]
[420079035,1775656277683,-1002.84151,0.00015965,2]
[420079036,1775656277692,-359.071861,0.00015965,2]
[420079037,1775656277702,-285.69162,0.00015965,2]
[420079038,1775656277714,-1002.84151,0.00015965,2]
[420079039,1775656277724,-151.0,0.00015965,2]
[420079040,1775656277734,-359.071861,0.00015965,2]
[420079041,1775656277744,-1002.84151,0.00015965,2]
[420079042,1775656277755,-1375.25927,0.00015965,2]
[420079043,1775656277765,-163.04538,0.00015965,2]
[420079044,1775656277776,-359.071861,0.00015965,2]
[420079045,1775656277786,-151.0,0.00015965,2]
[420079046,1775656277797,-151.0,0.00015965,2]
[420079047,1775656277809,-9803.010631,0.00015965,2]
[420079048,1775656277819,-1375.25927,0.00015965,2]
[420079049,1775656277829,-151.0,0.00015965,2]
[420079050,1775656277840,-151.0,0.00015965,2]
[420079051,1775656277851,-9803.010631,0.00015965,2]
[420079052,1775656277861,-1375.25927,0.00015965,2]
[420079053,1775656277872,-9803.010631,0.00015965,2]
[420079054,1775656277882,-208.867238,0.00015965,2]
[420079055,1775656277892,-1375.25927,0.00015965,2]
[420079056,1775656277904,-151.0,0.00015965,2]
[420079057,1775656277915,-9803.010631,0.00015965,2]
[420079058,1775656277925,-602.775144,0.00015965,2]
[420079059,1775656277935,-173.387355,0.00015965,2]
[420079060,1775656277945,-1282.593182,0.00015965,2]
[420079061,1775656277954,-151.0,0.00015965,2]
[420079062,1775656277964,-173.387355,0.00015965,2]
[420079063,1775656277974,-359.071861,0.00015965,2]
[420079064,1775656277983,-602.775144,0.00015965,2]
[420079065,1775656277993,-1282.593182,0.00015965,2]
[420079066,1775656278003,-173.387355,0.00015965,2]
[420079067,1775656278012,-602.775144,0.00015965,2]
[420079068,1775656278023,-1282.593182,0.00015965,2]
[420079069,1775656278033,-173.387355,0.00015965,2]
[420079070,1775656278043,-602.775144,0.00015965,2]
[420079071,1775656278054,-151.0,0.00015965,2]
[420079072,1775656278064,-1282.593182,0.00015965,2]
[420079073,1775656278074,-153.577894,0.00015965,2]
[420079074,1775656278084,-254.210321,0.00015965,2]
[420079075,1775656278094,-254.210321,0.00015965,2]
[420079076,1775656278104,-254.210321,0.00015965,2]
[420079077,1775656278114,-254.210321,0.00015965,2]
[420079078,1775656278125,-462.253159,0.00015965,2]
[420079079,1775656278135,-462.253159,0.00015965,2]
[420079080,1775656278145,-151.0,0.00015965,2]
[420079081,1775656278155,-151.0,0.00015965,2]
[420079082,1775656278165,-462.253159,0.00015965,2]
[420079083,1775656278175,-151.0,0.00015965,2]
[420079084,1775656278185,-151.0,0.00015965,2]
[420079085,1775656278194,-462.253159,0.00015965,2]
[420079086,1775656278204,-235.524246,0.00015965,2]
[420079087,1775656278214,-151.0,0.00015965,2]
[420079088,1775656278224,-151.0,0.00015965,2]
[420079089,1775656278233,-235.524246,0.00015965,2]
[420079090,1775656278243,-151.0,0.00015965,2]
[420079091,1775656278253,-235.524246,0.00015965,2]
[420079092,1775656278263,-151.0,0.00015965,2]
[420079093,1775656278273,-235.524246,0.00015965,2]
[420079094,1775656278283,-1858.078494,0.00015965,2]
[420079095,1775656278293,-1858.078494,0.00015965,2]
[420079096,1775656278307,-846.16281,0.00015965,2]
[420079097,1775656278317,-631.145346,0.00015965,2]
[420079098,1775656278328,-151.0,0.00015965,2]
[420079099,1775656278338,-1858.078494,0.00015965,2]
[420079100,1775656278348,-151.0,0.00015965,2]
[420079101,1775656278358,-631.145346,0.00015965,2]
[420079102,1775656278368,-151.0,0.00015965,2]
[420079103,1775656278378,-1858.078494,0.00015965,2]
[420079104,1775656278388,-151.0,0.00015965,2]
[420079105,1775656278398,-846.16281,0.00015965,2]
[420079106,1775656278408,-631.145346,0.00015965,2]
[420079107,1775656278419,-151.0,0.00015965,2]
[420079108,1775656278429,-151.0,0.00015965,2]
[420079109,1775656278440,-846.16281,0.00015965,2]
[420079110,1775656278450,-631.145346,0.00015965,2]
[420079111,1775656278461,-892.793616,0.00015965,2]
[420079112,1775656278471,-215.000924,0.00015965,2]
[420079113,1775656278482,-151.0,0.00015965,2]
[420079114,1775656278492,-846.16281,0.00015965,2]
[420079115,1775656278502,-892.793616,0.00015965,2]
[420079116,1775656278513,-215.000924,0.00015965,2]
[420079117,1775656278524,-892.793616,0.00015965,2]
[420079118,1775656278536,-215.000924,0.00015965,2]
[420079119,1775656278546,-151.0,0.00015965,2]
[420079120,1775656278558,-215.000924,0.00015965,2]
[420079121,1775656278569,-892.793616,0.00015965,2]
[420079122,1775656278580,-2027.179466,0.00015965,2]
[420079123,1775656278590,-151.0,0.00015965,2]
[420079124,1775656278601,-1985.051114,0.00015965,2]
[420079125,1775656278612,-151.0,0.00015965,2]
[420079126,1775656278622,-151.0,0.00015965,2]
[420079127,1775656278632,-2027.179466,0.00015965,2]
[420079128,1775656278642,-151.0,0.00015965,2]
[420079129,1775656278652,-151.0,0.00015965,2]
[420079130,1775656278664,-1985.051114,0.00015965,2]
[420079131,1775656278675,-151.0,0.00015965,2]
[420079132,1775656278684,-2584.756907,0.00015965,2]
[420079133,1775656278695,-2027.179466,0.00015965,2]
[420079134,1775656278705,-1985.051114,0.00015965,2]
[420079135,1775656278715,-2027.179466,0.00015965,2]
[420079136,1775656278725,-2584.756907,0.00015965,2]
[420079137,1775656278735,-1985.051114,0.00015965,2]
[420079138,1775656278745,-1659.646483,0.00015965,2]
[420079139,1775656278755,-723.953235,0.00015965,2]
[420079140,1775656278765,-154.175785,0.00015965,2]
[420079141,1775656278776,-2584.756907,0.00015965,2]
[420079142,1775656278786,-1659.646483,0.00015965,2]
[420079143,1775656278796,-723.953235,0.00015965,2]
[420079144,1775656278807,-2584.756907,0.00015965,2]
[420079145,1775656278818,-378.257063,0.00015965,2]
[420079146,1775656278829,-191.922467,0.00015965,2]
[420079147,1775656278840,-1659.646483,0.00015965,2]
[420079148,1775656278850,-723.953235,0.00015965,2]
[420079149,1775656278861,-1130.193666,0.00015965,2]
[420079150,1775656278872,-378.257063,0.00015965,2]
[420079151,1775656278883,-1659.646483,0.00015965,2]
[420079152,1775656278893,-723.953235,0.00015965,2]
[420079153,1775656278904,-1130.193666,0.00015965,2]
[420079154,1775656278915,-378.257063,0.00015965,2]
[420079155,1775656278926,-151.0,0.00015965,2]
[420079156,1775656278937,-151.0,0.00015965,2]
[420079157,1775656278948,-1130.193666,0.00015965,2]
[420079158,1775656278958,-378.257063,0.00015965,2]
[420079159,1775656278970,-151.0,0.00015965,2]
[420079160,1775656278981,-1130.193666,0.00015965,2]
[420079161,1775656278991,-151.0,0.00015965,2]
[420079162,1775656279002,-686.980322,0.00015965,2]
[420079163,1775656279012,-686.980322,0.00015965,2]
[420079164,1775656279023,-1255.167093,0.00015965,2]
[420079165,1775656279033,-686.980322,0.00015965,2]
[420079166,1775656279043,-151.0,0.00015965,2]
[420079167,1775656279055,-151.0,0.00015965,2]
[420079168,1775656279065,-1255.167093,0.00015965,2]
[420079169,1775656279075,-686.980322,0.00015965,2]
[420079170,1775656279085,-1255.167093,0.00015965,2]
[420079171,1775656279095,-577.229302,0.00015965,2]
[420079172,1775656279104,-658.918959,0.00015965,2]
[420079173,1775656279114,-1255.167093,0.00015965,2]
[420079174,1775656279125,-577.229302,0.00015965,2]
[420079175,1775656279135,-658.918959,0.00015965,2]
[420079176,1775656279145,-151.0,0.00015965,2]
[420079177,1775656279156,-577.229302,0.00015965,2]
[420079178,1775656279166,-557.116664,0.00015965,2]
[420079179,1775656279176,-658.918959,0.00015965,2]
[420079180,1775656279186,-151.0,0.00015965,2]
[420079181,1775656279195,-151.0,0.00015965,2]
[420079182,1775656279204,-577.229302,0.00015965,2]
[420079183,1775656279214,-557.116664,0.00015965,2]
[420079184,1775656279223,-658.918959,0.00015965,2]
[420079185,1775656279232,-151.0,0.00015965,2]
[420079186,1775656279242,-151.0,0.00015965,2]
[420079187,1775656279251,-187.289011,0.00015965,2]
[420079188,1775656279261,-557.116664,0.00015965,2]
[420079189,1775656279271,-530.018044,0.00015965,2]
[420079190,1775656279281,-731.708011,0.00015965,2]
[420079191,1775656279291,-211.117548,0.00015965,2]
[420079192,1775656279301,-557.116664,0.00015965,2]
[420079193,1775656279312,-151.0,0.00015965,2]
[420079194,1775656279322,-530.018044,0.00015965,2]
[420079195,1775656279332,-731.708011,0.00015965,2]
[420079196,1775656279342,-211.117548,0.00015965,2]
[420079197,1775656279352,-151.0,0.00015965,2]
[420079198,1775656279362,-326.921133,0.00015965,2]
[420079199,1775656279372,-731.708011,0.00015965,2]
[420079200,1775656279382,-400.719158,0.00015965,2]
[420079201,1775656279393,-151.0,0.00015965,2]
[420079202,1775656279403,-530.018044,0.00015965,2]
[420079203,1775656279413,-151.0,0.00015965,2]
[420079204,1775656279424,-211.117548,0.00015965,2]
[420079205,1775656279434,-326.921133,0.00015965,2]
[420079206,1775656279443,-151.0,0.00015965,2]
[420079207,1775656279454,-400.719158,0.00015965,2]
[420079208,1775656279464,-530.018044,0.00015965,2]
[420079209,1775656279474,-151.0,0.00015965,2]
[420079210,1775656279485,-151.0,0.00015965,2]
[420079211,1775656279495,-211.117548,0.00015965,2]
[420079212,1775656279505,-633.587214,0.00015965,2]
[420079213,1775656279514,-326.921133,0.00015965,2]
[420079214,1775656279524,-151.0,0.00015965,2]
[420079215,1775656279534,-400.719158,0.00015965,2]
[420079216,1775656279544,-151.0,0.00015965,2]
[420079217,1775656279556,-633.587214,0.00015965,2]
[420079218,1775656279567,-326.921133,0.00015965,2]
[420079219,1775656279577,-276.541376,0.00015965,2]
[420079220,1775656279588,-151.0,0.00015965,2]
[420079221,1775656279598,-633.587214,0.00015965,2]
[420079222,1775656279608,-152.006327,0.00015965,2]
[420079223,1775656279619,-261.075905,0.00015965,2]
[420079224,1775656279629,-731.708011,0.00015965,2]
[420079225,1775656279640,-633.587214,0.00015965,2]
[420079226,1775656279650,-1372.374942,0.00015965,2]
[420079227,1775656279660,-1372.374942,0.00015965,2]
[420079228,1775656279671,-1372.374942,0.00015965,2]
[420079229,1775656279681,-1352.119912,0.00015965,2]
[420079230,1775656279691,-570.868716,0.00015965,2]
[420079231,1775656279701,-400.719158,0.00015965,2]
[420079232,1775656279711,-1372.374942,0.00015965,2]
[420079233,1775656279722,-152.070998,0.00015965,2]
[420079234,1775656279732,-1352.119912,0.00015965,2]
[420079235,1775656279743,-570.868716,0.00015965,2]
[420079236,1775656279753,-1352.119912,0.00015965,2]
[420079237,1775656279763,-570.868716,0.00015965,2]
[420079238,1775656279774,-151.0,0.00015965,2]
[420079239,1775656279784,-151.0,0.00015965,2]
[420079240,1775656279794,-1352.119912,0.00015965,2]
[420079241,1775656279806,-570.868716,0.00015965,2]
[420079242,1775656279816,-151.0,0.00015965,2]
[420079243,1775656279826,-151.0,0.00015965,2]
[420079244,1775656280044,-151.0,0.00015965,2]
[420079245,1775656280058,-151.0,0.00015965,2]
[420079246,1775656280068,-151.0,0.00015965,2]
[420079247,1775656280077,-151.0,0.00015965,2]
[420079248,1775656280088,-151.0,0.00015965,2]
[420079249,1775656280099,-167.979442,0.00015965,2]
[420079250,1775656280109,-553.999157,0.00015965,2]
[420079251,1775656280119,-167.979442,0.00015965,2]
[420079252,1775656280130,-155.412458,0.00015965,2]
[420079253,1775656280140,-553.999157,0.00015965,2]
[420079254,1775656280150,-155.412458,0.00015965,2]
[420079255,1775656280270,-151.0,0.00015965,2]
[420079256,1775656280282,-155.412458,0.00015965,2]
[420079257,1775656280292,-553.999157,0.00015965,2]
[420079258,1775656280304,-151.0,0.00015965,2]
[420079259,1775656280314,-911.817401,0.00015965,2]
[420079260,1775656280323,-1238.577321,0.00015965,2]
[420079261,1775656280333,-155.412458,0.00015965,2]
[420079262,1775656280344,-553.999157,0.00015965,2]
[420079263,1775656280355,-151.0,0.00015965,2]
[420079264,1775656280365,-911.817401,0.00015965,2]
[420079265,1775656280375,-1238.577321,0.00015965,2]
[420079266,1775656280386,-911.817401,0.00015965,2]
[420079267,1775656280397,-151.0,0.00015965,2]
[420079268,1775656280406,-167.979442,0.00015965,2]
[420079269,1775656280416,-151.0,0.00015965,2]
[420079270,1775656280426,-1238.577321,0.00015965,2]
[420079271,1775656280436,-3158.761635,0.00015965,2]
[420079272,1775656280446,-911.817401,0.00015965,2]
[420079273,1775656280456,-1085.941628,0.00015965,2]
[420079274,1775656280467,-167.979442,0.00015965,2]
[420079275,1775656280477,-227.054524,0.00015965,2]
[420079276,1775656280487,-1058.67473,0.00015965,2]
[420079277,1775656280498,-1238.577321,0.00015965,2]
[420079278,1775656280509,-151.0,0.00015965,2]
[420079279,1775656280520,-3158.761635,0.00015965,2]
[420079280,1775656280531,-1085.941628,0.00015965,2]
[420079281,1775656280541,-675.314135,0.00015965,2]
[420079282,1775656280552,-1058.67473,0.00015965,2]
[420079283,1775656280562,-151.0,0.00015965,2]
[420079284,1775656280572,-3158.761635,0.00015965,2]
[420079285,1775656280583,-1085.941628,0.00015965,2]
[420079286,1775656280593,-151.0,0.00015965,2]
[420079287,1775656280603,-675.314135,0.00015965,2]
[420079288,1775656280613,-1058.67473,0.00015965,2]
[420079289,1775656280623,-151.0,0.00015965,2]
[420079290,1775656280633,-151.0,0.00015965,2]
[420079291,1775656280644,-3158.761635,0.00015965,2]
[420079292,1775656280654,-1085.941628,0.00015965,2]
[420079293,1775656280664,-675.314135,0.00015965,2]
[420079294,1775656280674,-1058.67473,0.00015965,2]
[420079295,1775656280684,-183.448912,0.00015965,2]
[420079296,1775656280694,-675.314135,0.00015965,2]
[420079297,1775656280704,-1320.429681,0.00015965,2]
[420079298,1775656280714,-151.0,0.00015965,2]
[420079299,1775656280724,-3113.760662,0.00015965,2]
[420079300,1775656280734,-151.0,0.00015965,2]
[420079301,1775656280745,-201.410641,0.00015965,2]
[420079302,1775656280755,-157.215334,0.00015965,2]
[420079303,1775656280766,-1320.429681,0.00015965,2]
[420079304,1775656280776,-3113.760662,0.00015965,2]
[420079305,1775656280786,-201.410641,0.00015965,2]
[420079306,1775656280797,-151.0,0.00015965,2]
[420079307,1775656280809,-157.215334,0.00015965,2]
[420079308,1775656280818,-1320.429681,0.00015965,2]
[420079309,1775656280828,-3113.760662,0.00015965,2]
[420079310,1775656280839,-201.410641,0.00015965,2]
[420079311,1775656280852,-151.0,0.00015965,2]
[420079312,1775656280862,-2296.908721,0.00015965,2]
[420079313,1775656280873,-157.215334,0.00015965,2]
[420079314,1775656280884,-1320.429681,0.00015965,2]
[420079315,1775656280896,-2004.189884,0.00015965,2]
[420079316,1775656280907,-3113.760662,0.00015965,2]
[420079317,1775656280916,-201.410641,0.00015965,2]
[420079318,1775656280926,-3561.69,0.00015968,2]
[420079319,1775656280936,-501.46029237,0.00015973,2]
[420079320,1775656280946,-162.60419222,0.00015973,2]
[420079321,1775656280956,-500.0,0.00015973,2]
[420079322,1775656280966,-217.99,0.00015979,2]
[420079323,1775656280976,-234.13551218,0.00015988,2]
[420079324,1775656280985,-194.72792766,0.00015989,2]
[420079325,1775656280995,-1328.27659266,0.00015989,2]
[420079326,1775656281005,-200.0,0.00015989,2]
[420079327,1775656281015,-799.54513345,0.00015989,2]
[420079328,1775656281025,-187.78006525,0.00015989,2]
[420079329,1775656281035,-151.0,0.00015997,2]
[420079330,1775656281044,-151.0,0.00015997,2]
[420079331,1775656281055,-2368448.5672518,0.00016,2]
[420079332,1775656281065,-2000.0,0.00016,2]
[420079333,1775656281075,-151.0,0.00016,2]
[420079334,1775656281084,-3783784.44139807,0.00016,2]
[420079335,1775656282112,-500.0,0.00012226,2]
[420079336,1775656282126,-656.247131,0.00012226,2]
[420079337,1775656282137,-2004.189884,0.000155,2]
[420079338,1775656282147,-151.0,0.00015965,2]
[420079339,1775656282157,-151.0,0.00015965,2]
[420079340,1775656282168,-157.215334,0.00015965,2]
[420079341,1775656282182,-14023.51581198,0.00016,2]
[420079342,1775656282195,-5590.82339921,0.00016,2]
[420079343,1775656282207,-5531.0,0.00016,2]
[420079344,1775656282531,-2004.189884,0.000157,2]
[420079345,1775656282541,-31.33001302,0.00016,2]
[420079346,1775656282641,-173381.5173156,0.00016,2]
[420079347,1775656282653,-113885.25585598,0.00016,2]
[420079348,1775656282809,-35313.73927375,0.00016,2]
[420079349,1775656282822,-75508.39981073,0.00016,2]
[420079350,1775656282834,-2608.61485311,0.00016,2]
[420079351,1775656282846,-6794.91601262,0.00016,2]
[420079352,1775656282858,-1282.89360409,0.00016,2]
[420079353,1775656282870,-1570.87619904,0.00016,2]
[420079354,1775656282882,-346.56725597,0.00016,2]
[420079355,1775656283290,-500.0,9.788e-05,2]
[420079356,1775656283301,-307.51110822,0.00010062,2]
[420079357,1775656283315,-192.48889178,0.00010062,2]
[420079358,1775656283325,-1346.161838,0.00012837,2]
[420079359,1775656283334,-501.0,0.000131,2]
[420079360,1775656283344,-121.35393205,0.00013699,2]
[420079361,1775656283397,-2500.0,9.689e-05,2]
[420079362,1775656283407,-500.0,0.00010336,2]
[420079363,1775656283417,-121.96515995,0.00013699,2]
[420079364,1775656283427,-151.0,0.00013699,2]
[420079365,1775656283437,-1145.91681002,0.00013699,2]
[420079366,1775656283449,-858.27307398,0.00013699,2]
[420079367,1775656283458,-700.004156,0.0001406,7]
[420079368,1775656283469,-501.0,0.00014162,2]
[420079369,1775656283479,-501.0,0.00015224,3]
[420079370,1775656283489,-151.0,0.000155,2]
[420079371,1775656283498,-2004.189884,0.000155,2]
[420079372,1775656283508,-151.0,0.000157,2]
[420079373,1775656283518,-2004.189884,0.000157,2]
[420079374,1775656283528,-2004.189884,0.00015965,2]
[420079375,1775656283538,-151.0,0.00015965,2]
[420079376,1775656283547,-2004.189884,0.00015965,2]
[420079377,1775656283556,-16998.083039,0.00016,2]
[420079378,1775656283568,-1175.36949124,0.00016,2]
[420079379,1775656283580,-2150.8779,0.00016,2]
[420079380,1775656283591,-950.43221416,0.00016,2]
[420079381,1775656356229,186.67,6.442e-05,2]
[420079382,1775656356499,186.67,6.781e-05,2]
[420079383,1775656356737,186.67,7.12e-05,2]
[420079384,1775656356962,186.67,7.459e-05,2]
[420079385,1775656357178,186.67,7.798e-05,2]
[420079386,1775656357389,186.67,8.138e-05,2]
[420079387,1775656357605,186.67,8.477e-05,2]
[420079388,1775656357814,186.67,8.816e-05,2]
[420079389,1775656370676,-186.67,9.155e-05,2]
[420079390,1775656387374,151.0,9.155e-05,3]
[420079391,1775656445896,151.0,9.155e-05,3]
[420079394,1775656504732,151.0,9.155e-05,3]
[420079395,1775656625627,151.0,9.155e-05,3]
[420079396,1775656674136,-2101.51,9.025e-05,2]
[420079397,1775656674286,-4303.63,9.025e-05,2]
[420079398,1775656674353,-10000.01,9.025e-05,2]
[420079399,1775656690227,-1870.25,9.025e-05,2]
[420079400,1775656690256,-6259.51,9.025e-05,2]
[420079402,1775656815693,153.0,9.155e-05,3]
[420079407,1775656885110,300.2,9.5e-05,3]
[420079408,1775656897043,253.99,8.83e-05,2]
[420079409,1775657008365,500.0,8.878e-05,2]
[420079411,1775657109722,153.0,9.155e-05,3]
[420079412,1775657260522,2975.2123007,8e-05,2]
[420079413,1775657262230,1852.42,8.687e-05,2]
[420079414,1775657399817,394.15138645,7.888e-05,2]
[420079415,1775657411218,153.0,9.155e-05,3]
[420079418,1775657431859,-1200.0,9.362e-05,2]
[420079419,1775657431870,-1500.0,9.363e-05,2]
[420079420,1775657431879,-250.0,9.363e-05,2]
[420079421,1775657431890,-284.0,9.363e-05,2]
[420079422,1775657431901,-664.19234799,9.363e-05,2]
[420079423,1775657431911,-297.17679186,9.37e-05,2]
[420079424,1775657431922,-300.0,9.394e-05,2]
[420079425,1775657431932,-300.0,9.394e-05,2]
[420079426,1775657431942,-300.0,9.394e-05,2]
[420079427,1775657431952,-1200.0,9.395e-05,2]
[420079428,1775657431962,-300.0,9.395e-05,2]
[420079429,1775657431972,-429.08031292,9.475e-05,2]
[420079430,1775657431985,-235.11203506,9.475e-05,2]
[420079431,1775657431995,-186.67,9.494e-05,2]
[420079432,1775657432005,-85.32196494,9.572e-05,2]
[420079433,1775657432019,-64.67803506,9.572e-05,2]
[420079434,1775657432029,-200.0,9.573e-05,2]
[420079435,1775657432039,-730.00905467,9.573e-05,2]
[420079436,1775657432053,-1910.49157789,9.573e-05,2]
[420079437,1775657432065,-500.0,9.573e-05,2]
[420079438,1775657432080,-1759.17936744,9.573e-05,2]
[420079439,1775657432090,-150.99,9.573e-05,2]
[420079440,1775657432100,-299.99,9.573e-05,2]
[420079441,1775657432110,-150.99,9.573e-05,2]
[420079442,1775657432121,-2239.59501779,9.573e-05,2]
[420079443,1775657432133,-2033.32099426,9.573e-05,2]
[420079444,1775657432145,-644.71052742,9.573e-05,2]
[420079445,1775657432157,-702.36606411,9.573e-05,2]
[420079446,1775657432171,-2088.41628585,9.573e-05,2]
[420079447,1775657432184,-2416.29731248,9.573e-05,2]
[420079448,1775657432198,-280.72,9.573e-05,2]
[420079449,1775657432211,-610.44814184,9.573e-05,2]
[420079450,1775657432225,-382.82685681,9.573e-05,2]
[420079451,1775657432238,-3823.52879944,9.573e-05,2]
[420079452,1775657432249,-999.99,9.573e-05,2]
[420079453,1775657432260,-664.19234798,9.587e-05,2]
[420079454,1775657432270,-565.72432124,9.587e-05,2]
[420079455,1775657432280,-570.51158875,9.587e-05,2]
[420079456,1775657432291,-570.51158875,9.587e-05,2]
[420079457,1775657432301,-570.51158875,9.587e-05,2]
[420079458,1775657432311,-570.51158875,9.587e-05,2]
[420079459,1775657432321,-570.51158875,9.587e-05,2]
[420079460,1775657432332,-570.51158875,9.587e-05,2]
[420079461,1775657432343,-570.51158875,9.587e-05,2]
[420079462,1775657432354,-570.51158875,9.587e-05,2]
[420079463,1775657432364,-570.51158875,9.587e-05,2]
[420079464,1775657432375,-570.51158875,9.587e-05,2]
[420079465,1775657432385,-570.51158875,9.587e-05,2]
[420079466,1775657432396,-570.51158875,9.587e-05,2]
[420079467,1775657432406,-570.51158875,9.587e-05,2]
[420079468,1775657432417,-570.51158875,9.587e-05,2]
[420079469,1775657432427,-570.51158875,9.587e-05,2]
[420079470,1775657432437,-570.51158875,9.587e-05,2]
[420079471,1775657432447,-570.51158875,9.587e-05,2]
[420079472,1775657432456,-570.51158875,9.587e-05,2]
[420079473,1775657432466,-570.51158875,9.587e-05,2]
[420079474,1775657432476,-570.51158875,9.587e-05,2]
[420079475,1775657432486,-570.51158875,9.587e-05,2]
[420079476,1775657432496,-570.51158875,9.587e-05,2]
[420079477,1775657432507,-570.51158875,9.587e-05,2]